[Event "Titled Tuesday Blitz April 18 Late 2023"]
[White "Ashraf, Artin"]
[Black "Zarnicki, Pablo"]
[WhiteFideId "22514805"]
[BlackFideId "100137"]
[WhiteElo "2188"]
[BlackElo "2468"]
[Result "1-0"]
[Round "04"]
[TimeControl "180+2"]
[Date "2023.04.18"]
[WhiteClock "0:00:05"]
[BlackClock "0:00:41"]

1. e4 {[%clk 0:03:00]}  e5 {[%clk 0:02:25]} 2. Nf3 {[%clk 0:03:00]}  Nf6 {[%clk 0:02:23]} 3. Nc3 {[%clk 0:02:58]}  Nc6 {[%clk 0:02:20]} 4. Bb5 {[%clk 0:02:57]}  Bc5 {[%clk 0:02:16]} 5. O-O {[%clk 0:02:55]}  Nd4 {[%clk 0:02:08]} 6. Nxe5 {[%clk 0:02:11]}  O-O {[%clk 0:02:03]} 7. Be2 {[%clk 0:01:59]}  Re8 {[%clk 0:01:58]} 8. Nd3 {[%clk 0:01:57]}  Bb6 {[%clk 0:01:52]} 9. Bf3 {[%clk 0:01:52]}  d6 {[%clk 0:01:48]} 10. Nf4 {[%clk 0:01:49]}  Bd7 {[%clk 0:01:42]} 11. d3 {[%clk 0:01:48]}  h6 {[%clk 0:01:36]} 12. Be3 {[%clk 0:01:40]}  Nxf3+ {[%clk 0:01:34]} 13. Qxf3 {[%clk 0:01:39]}  Ba5 {[%clk 0:01:33]} 14. Qg3 {[%clk 0:01:06]}  Ng4 {[%clk 0:01:25]} 15. Bd2 {[%clk 0:00:56]}  Qg5 {[%clk 0:01:14]} 16. Rad1 {[%clk 0:00:50]}  Qe5 {[%clk 0:01:05]} 17. h3 {[%clk 0:00:33]}  Nf6 {[%clk 0:01:03]} 18. Ncd5 {[%clk 0:00:24]}  Bxd2 {[%clk 0:01:01]} 19. Rxd2 {[%clk 0:00:22]}  Nxd5 {[%clk 0:01:00]} 20. Nxd5 {[%clk 0:00:22]}  Qxg3 {[%clk 0:00:57]} 21. fxg3 {[%clk 0:00:23]}  Rac8 {[%clk 0:00:57]} 22. Rdf2 {[%clk 0:00:23]}  Be6 {[%clk 0:00:54]} 23. Nc3 {[%clk 0:00:22]}  c6 {[%clk 0:00:51]} 24. d4 {[%clk 0:00:20]}  Kf8 {[%clk 0:00:51]} 25. g4 {[%clk 0:00:19]}  d5 {[%clk 0:00:51]} 26. e5 {[%clk 0:00:19]}  Ke7 {[%clk 0:00:51]} 27. Ne2 {[%clk 0:00:17]}  g5 {[%clk 0:00:48]} 28. c3 {[%clk 0:00:16]}  b6 {[%clk 0:00:48]} 29. Ng3 {[%clk 0:00:16]}  c5 {[%clk 0:00:46]} 30. Nf5+ {[%clk 0:00:14]}  Bxf5 {[%clk 0:00:46]} 31. Rxf5 {[%clk 0:00:15]}  cxd4 {[%clk 0:00:46]} 32. Rxf7+ {[%clk 0:00:14]}  Ke6 {[%clk 0:00:45]} 33. cxd4 {[%clk 0:00:14]}  Re7 {[%clk 0:00:42]} 34. R1f6+ {[%clk 0:00:09]}  Kd7 {[%clk 0:00:43]} 35. Rd6+ {[%clk 0:00:07]}  Ke8 {[%clk 0:00:43]} 36. Rxe7+ {[%clk 0:00:08]}  Kxe7 {[%clk 0:00:43]} 37. Rxh6 {[%clk 0:00:09]}  Rc2 {[%clk 0:00:43]} 38. Rh7+ {[%clk 0:00:09]}  Ke6 {[%clk 0:00:43]} 39. Rxa7 {[%clk 0:00:09]}  Rd2 {[%clk 0:00:43]} 40. Rg7 {[%clk 0:00:06]}  Rxd4 {[%clk 0:00:43]} 41. Rxg5 {[%clk 0:00:06]}  Rd2 {[%clk 0:00:43]} 42. Rg6+ {[%clk 0:00:07]}  Kxe5 {[%clk 0:00:43]} 43. Rxb6 {[%clk 0:00:07]}  d4 {[%clk 0:00:44]} 44. a4 {[%clk 0:00:08]}  Kf4 {[%clk 0:00:44]} 45. Kh2 {[%clk 0:00:08]}  d3 {[%clk 0:00:43]} 46. a5 {[%clk 0:00:07]}  Rd1 {[%clk 0:00:44]} 47. a6 {[%clk 0:00:06]}  Ra1 {[%clk 0:00:43]} 48. Rd6 {[%clk 0:00:05]}  Ke3 {[%clk 0:00:43]} 49. b4 {[%clk 0:00:04]}  d2 {[%clk 0:00:43]} 50. b5 {[%clk 0:00:04]}  Ke2 {[%clk 0:00:42]} 51. g5 {[%clk 0:00:03]}  d1=Q {[%clk 0:00:41]} 52. Rxd1 {[%clk 0:00:03]}  Kxd1 {[%clk 0:00:42]} 53. g6 {[%clk 0:00:03]}  Ra5 {[%clk 0:00:42]} 54. g7 {[%clk 0:00:03]}  Rxb5 {[%clk 0:00:41]} 55. g8=Q {[%clk 0:00:04]}  Rb2 {[%clk 0:00:42]} 56. Qg4+ {[%clk 0:00:04]}  Ke1 {[%clk 0:00:42]} 57. a7 {[%clk 0:00:05]}  Kf1 {[%clk 0:00:42]} 58. a8=Q {[%clk 0:00:04]}  Re2 {[%clk 0:00:42]} 59. Qa6 {[%clk 0:00:04]}  Kf2 {[%clk 0:00:41]} 60. Qaxe2# {[%clk 0:00:05]} 1-0


[Site "https://www.chess.com"]

[Event "Titled Tuesday Blitz April 18 Late 2023"]
[White "Al-Tarboush, Ward"]
[Black "Oganian, Miran"]
[WhiteFideId "7601450"]
[BlackFideId "4122488"]
[WhiteElo "2265"]
[BlackElo "2323"]
[Result "1-0"]
[Round "04"]
[TimeControl "180+2"]
[Date "2023.04.18"]
[WhiteClock "0:02:23"]
[BlackClock "0:01:34"]

1. e4 {[%clk 0:03:00]}  e6 {[%clk 0:02:56]} 2. d4 {[%clk 0:03:00]}  d5 {[%clk 0:02:56]} 3. exd5 {[%clk 0:03:01]}  exd5 {[%clk 0:02:56]} 4. Bd3 {[%clk 0:03:01]}  Nc6 {[%clk 0:02:56]} 5. Nf3 {[%clk 0:03:01]}  Bd6 {[%clk 0:02:57]} 6. O-O {[%clk 0:03:01]}  Nge7 {[%clk 0:02:58]} 7. c3 {[%clk 0:03:00]}  Bg4 {[%clk 0:02:58]} 8. Re1 {[%clk 0:03:01]}  Qd7 {[%clk 0:02:58]} 9. Nbd2 {[%clk 0:03:01]}  O-O-O {[%clk 0:02:58]} 10. b4 {[%clk 0:03:01]}  Ng6 {[%clk 0:02:58]} 11. Nb3 {[%clk 0:02:57]}  Rde8 {[%clk 0:02:58]} 12. Be3 {[%clk 0:02:57]}  Nh4 {[%clk 0:02:56]} 13. Be2 {[%clk 0:02:57]}  Nf5 {[%clk 0:02:52]} 14. b5 {[%clk 0:02:56]}  Nd8 {[%clk 0:02:42]} 15. Nc5 {[%clk 0:02:53]}  Bxc5 {[%clk 0:02:42]} 16. dxc5 {[%clk 0:02:54]}  Nxe3 {[%clk 0:02:40]} 17. fxe3 {[%clk 0:02:55]}  Rxe3 {[%clk 0:02:32]} 18. c6 {[%clk 0:02:55]}  Qe7 {[%clk 0:02:28]} 19. Qd4 {[%clk 0:02:48]}  Kb8 {[%clk 0:02:06]} 20. Qxg4 {[%clk 0:02:41]}  Rxe2 {[%clk 0:02:06]} 21. Rxe2 {[%clk 0:02:37]}  Qxe2 {[%clk 0:02:07]} 22. Qxg7 {[%clk 0:02:35]}  Qe3+ {[%clk 0:02:01]} 23. Kh1 {[%clk 0:02:35]}  Re8 {[%clk 0:02:02]} 24. h3 {[%clk 0:02:34]}  b6 {[%clk 0:01:49]} 25. Re1 {[%clk 0:02:30]}  Ne6 {[%clk 0:01:35]} 26. Qxf7 {[%clk 0:02:24]}  Rf8 {[%clk 0:01:34]} 27. Qxf8+ {[%clk 0:02:23]} 1-0


[Site "https://www.chess.com"]

[Event "Titled Tuesday Blitz April 18 Late 2023"]
[White "Aggelis, Nikolaos"]
[Black "Spata, German"]
[WhiteFideId "4213220"]
[BlackFideId "113026"]
[WhiteElo "2189"]
[BlackElo "2238"]
[Result "1/2-1/2"]
[Round "04"]
[TimeControl "180+2"]
[Date "2023.04.18"]
[WhiteClock "0:00:14"]
[BlackClock "0:00:04"]

1. c4 {[%clk 0:03:00]}  e6 {[%clk 0:02:58]} 2. g3 {[%clk 0:03:00]}  Nf6 {[%clk 0:02:58]} 3. Bg2 {[%clk 0:03:00]}  d5 {[%clk 0:02:57]} 4. Nf3 {[%clk 0:03:00]}  Be7 {[%clk 0:02:57]} 5. O-O {[%clk 0:03:01]}  O-O {[%clk 0:02:57]} 6. d3 {[%clk 0:02:49]}  c6 {[%clk 0:02:57]} 7. cxd5 {[%clk 0:02:40]}  exd5 {[%clk 0:02:57]} 8. Nc3 {[%clk 0:02:41]}  Bg4 {[%clk 0:02:55]} 9. h3 {[%clk 0:02:40]}  Bxf3 {[%clk 0:02:55]} 10. Bxf3 {[%clk 0:02:31]}  Re8 {[%clk 0:02:54]} 11. e4 {[%clk 0:02:24]}  dxe4 {[%clk 0:02:26]} 12. dxe4 {[%clk 0:02:21]}  Nbd7 {[%clk 0:02:25]} 13. Bg2 {[%clk 0:02:16]}  Nc5 {[%clk 0:02:24]} 14. Qc2 {[%clk 0:02:12]}  Qd3 {[%clk 0:02:24]} 15. Qxd3 {[%clk 0:01:59]}  Nxd3 {[%clk 0:02:24]} 16. Rb1 {[%clk 0:01:59]}  Nxc1 {[%clk 0:02:15]} 17. Rfxc1 {[%clk 0:01:56]}  Rad8 {[%clk 0:02:15]} 18. Rd1 {[%clk 0:01:56]}  Bb4 {[%clk 0:02:13]} 19. Rxd8 {[%clk 0:01:53]}  Rxd8 {[%clk 0:02:12]} 20. Rd1 {[%clk 0:01:53]}  Rxd1+ {[%clk 0:02:01]} 21. Nxd1 {[%clk 0:01:54]}  Kf8 {[%clk 0:02:01]} 22. f4 {[%clk 0:01:51]}  Ke7 {[%clk 0:01:58]} 23. Ne3 {[%clk 0:01:43]}  Bc5 {[%clk 0:01:56]} 24. Kf2 {[%clk 0:01:41]}  Nd7 {[%clk 0:01:53]} 25. Ke2 {[%clk 0:01:35]}  Bxe3 {[%clk 0:01:52]} 26. Kxe3 {[%clk 0:01:36]}  f6 {[%clk 0:01:51]} 27. h4 {[%clk 0:01:22]}  Kd6 {[%clk 0:01:50]} 28. Bh3 {[%clk 0:01:05]}  Nb6 {[%clk 0:01:50]} 29. b3 {[%clk 0:01:00]}  a5 {[%clk 0:01:48]} 30. h5 {[%clk 0:00:58]}  c5 {[%clk 0:01:23]} 31. Bf5 {[%clk 0:00:57]}  h6 {[%clk 0:01:22]} 32. Kd3 {[%clk 0:00:53]}  a4 {[%clk 0:01:14]} 33. Kc3 {[%clk 0:00:51]}  axb3 {[%clk 0:01:14]} 34. axb3 {[%clk 0:00:52]}  Kc6 {[%clk 0:00:48]} 35. Bg6 {[%clk 0:00:49]}  Nd7 {[%clk 0:00:43]} 36. Be8 {[%clk 0:00:49]}  b5 {[%clk 0:00:36]} 37. b4 {[%clk 0:00:33]}  c4 {[%clk 0:00:18]} 38. e5 {[%clk 0:00:25]}  fxe5 {[%clk 0:00:17]} 39. fxe5 {[%clk 0:00:26]}  Kc7 {[%clk 0:00:16]} 40. e6 {[%clk 0:00:26]}  Nf6 {[%clk 0:00:13]} 41. Bxb5 {[%clk 0:00:26]}  Kd6 {[%clk 0:00:14]} 42. Bxc4 {[%clk 0:00:20]}  Nxh5 {[%clk 0:00:09]} 43. b5 {[%clk 0:00:18]}  Nxg3 {[%clk 0:00:07]} 44. b6 {[%clk 0:00:18]}  Ne4+ {[%clk 0:00:06]} 45. Kd4 {[%clk 0:00:18]}  Nc5 {[%clk 0:00:06]} 46. Bd5 {[%clk 0:00:18]}  Na6 {[%clk 0:00:03]} 47. b7 {[%clk 0:00:18]}  g5 {[%clk 0:00:02]} 48. Ke4 {[%clk 0:00:17]}  h5 {[%clk 0:00:01]} 49. Kf5 {[%clk 0:00:17]}  g4 {[%clk 0:00:01]} 50. Kg5 {[%clk 0:00:18]}  g3 {[%clk 0:00:01]} 51. Kxh5 {[%clk 0:00:13]}  g2 {[%clk 0:00:01]} 52. Bxg2 {[%clk 0:00:13]}  Kxe6 {[%clk 0:00:02]} 53. Kg4 {[%clk 0:00:13]}  Kd6 {[%clk 0:00:02]} 54. Kf5 {[%clk 0:00:14]}  Kc7 {[%clk 0:00:03]} 55. Ke6 {[%clk 0:00:14]}  Nc5+ {[%clk 0:00:03]} 56. Ke7 {[%clk 0:00:14]}  Nxb7 {[%clk 0:00:04]} 1/2-1/2


[Site "https://www.chess.com"]

[Event "Titled Tuesday Blitz April 18 Late 2023"]
[White "Djordjevic, Vuk"]
[Black "Bagrationi, Alexander"]
[WhiteFideId "902098"]
[BlackFideId "14104954"]
[WhiteElo "2452"]
[BlackElo "2398"]
[Result "1-0"]
[Round "04"]
[TimeControl "180+2"]
[Date "2023.04.18"]
[WhiteClock "0:00:34"]
[BlackClock "0:00:16"]

1. d4 {[%clk 0:03:00]}  d6 {[%clk 0:02:59]} 2. Bg5 {[%clk 0:03:01]}  h6 {[%clk 0:02:53]} 3. Bh4 {[%clk 0:03:00]}  g5 {[%clk 0:02:49]} 4. Bg3 {[%clk 0:03:00]}  Bg7 {[%clk 0:02:49]} 5. c3 {[%clk 0:02:55]}  Nf6 {[%clk 0:02:26]} 6. Nd2 {[%clk 0:02:50]}  Bf5 {[%clk 0:02:22]} 7. Qb3 {[%clk 0:02:45]}  Qc8 {[%clk 0:02:19]} 8. f3 {[%clk 0:02:19]}  d5 {[%clk 0:02:11]} 9. Be5 {[%clk 0:02:12]}  Nc6 {[%clk 0:02:10]} 10. Bxf6 {[%clk 0:02:05]}  Bxf6 {[%clk 0:02:10]} 11. Qxd5 {[%clk 0:02:05]}  O-O {[%clk 0:01:48]} 12. e4 {[%clk 0:02:03]}  Be6 {[%clk 0:01:28]} 13. Qb5 {[%clk 0:02:00]}  Bxd4 {[%clk 0:01:07]} 14. cxd4 {[%clk 0:01:58]}  Nxd4 {[%clk 0:01:08]} 15. Qc5 {[%clk 0:01:57]}  Rd8 {[%clk 0:01:04]} 16. Ne2 {[%clk 0:01:55]}  b6 {[%clk 0:01:04]} 17. Qc3 {[%clk 0:01:45]}  c5 {[%clk 0:01:04]} 18. Nxd4 {[%clk 0:01:45]}  Rxd4 {[%clk 0:01:04]} 19. Bc4 {[%clk 0:01:45]}  Bxc4 {[%clk 0:00:46]} 20. Nxc4 {[%clk 0:01:45]}  Qe6 {[%clk 0:00:46]} 21. Ne3 {[%clk 0:01:39]}  Rad8 {[%clk 0:00:46]} 22. Nf5 {[%clk 0:01:33]}  Rxe4+ {[%clk 0:00:40]} 23. fxe4 {[%clk 0:01:30]}  Qxe4+ {[%clk 0:00:40]} 24. Qe3 {[%clk 0:00:45]}  Qxf5 {[%clk 0:00:40]} 25. Rf1 {[%clk 0:00:43]}  Qc2 {[%clk 0:00:31]} 26. Rf2 {[%clk 0:00:42]}  Qc4 {[%clk 0:00:31]} 27. Qe2 {[%clk 0:00:38]}  Qb4+ {[%clk 0:00:27]} 28. Kf1 {[%clk 0:00:38]}  e6 {[%clk 0:00:24]} 29. Kg1 {[%clk 0:00:38]}  Rd7 {[%clk 0:00:19]} 30. Raf1 {[%clk 0:00:38]}  Qd4 {[%clk 0:00:19]} 31. Kh1 {[%clk 0:00:38]}  c4 {[%clk 0:00:18]} 32. Qh5 {[%clk 0:00:33]}  Qxf2 {[%clk 0:00:16]} 33. Rxf2 {[%clk 0:00:34]} 1-0


[Site "https://www.chess.com"]

[Event "Titled Tuesday Blitz April 18 Late 2023"]
[White "liwadas82"]
[Black "Riff, Vincent"]
[BlackFideId "617776"]
[WhiteElo "2524"]
[BlackElo "2369"]
[Result "1-0"]
[Round "04"]
[TimeControl "180+2"]
[Date "2023.04.18"]
[WhiteClock "0:01:17"]
[BlackClock "0:01:38"]

1. e4 {[%clk 0:03:00]}  c5 {[%clk 0:02:59]} 2. Nf3 {[%clk 0:03:00]}  Nc6 {[%clk 0:02:55]} 3. d4 {[%clk 0:03:00]}  cxd4 {[%clk 0:02:56]} 4. Nxd4 {[%clk 0:03:00]}  e5 {[%clk 0:02:57]} 5. Nb5 {[%clk 0:03:00]}  d6 {[%clk 0:02:57]} 6. N1c3 {[%clk 0:03:00]}  a6 {[%clk 0:02:57]} 7. Na3 {[%clk 0:03:00]}  b5 {[%clk 0:02:58]} 8. Nd5 {[%clk 0:03:00]}  Nge7 {[%clk 0:02:57]} 9. c4 {[%clk 0:03:00]}  Nd4 {[%clk 0:02:56]} 10. Bd3 {[%clk 0:02:50]}  Nxd5 {[%clk 0:02:55]} 11. cxd5 {[%clk 0:02:48]}  g6 {[%clk 0:02:54]} 12. O-O {[%clk 0:02:47]}  Bg7 {[%clk 0:02:54]} 13. Nc2 {[%clk 0:02:44]}  Nxc2 {[%clk 0:02:53]} 14. Qxc2 {[%clk 0:02:40]}  Bd7 {[%clk 0:02:54]} 15. Be3 {[%clk 0:02:34]}  O-O {[%clk 0:02:46]} 16. Rfc1 {[%clk 0:02:33]}  Rc8 {[%clk 0:02:45]} 17. Qe2 {[%clk 0:02:31]}  f5 {[%clk 0:02:43]} 18. f3 {[%clk 0:02:30]}  fxe4 {[%clk 0:02:41]} 19. Bxe4 {[%clk 0:02:26]}  Qh4 {[%clk 0:02:39]} 20. Rxc8 {[%clk 0:02:15]}  Rxc8 {[%clk 0:02:37]} 21. Rc1 {[%clk 0:02:14]}  Rxc1+ {[%clk 0:02:33]} 22. Bxc1 {[%clk 0:02:15]}  Bh6 {[%clk 0:02:33]} 23. g3 {[%clk 0:02:02]}  Qh5 {[%clk 0:02:33]} 24. Be3 {[%clk 0:01:57]}  Kg7 {[%clk 0:02:18]} 25. h4 {[%clk 0:01:46]}  g5 {[%clk 0:02:10]} 26. g4 {[%clk 0:01:33]}  Qxh4 {[%clk 0:01:47]} 27. Kg2 {[%clk 0:01:30]}  b4 {[%clk 0:01:38]} 28. Bf2 {[%clk 0:01:27]}  Bb5 {[%clk 0:01:38]} 29. Qe1 {[%clk 0:01:17]} 1-0


[Site "https://www.chess.com"]

[Event "Titled Tuesday Blitz April 18 Late 2023"]
[White "Lenaerts, Lennert"]
[Black "Djokic, Mihailo"]
[WhiteFideId "211435"]
[BlackFideId "976440"]
[WhiteElo "2334"]
[BlackElo "2294"]
[Result "1-0"]
[Round "04"]
[TimeControl "180+2"]
[Date "2023.04.18"]
[WhiteClock "0:00:31"]
[BlackClock "0:00:01"]

1. d4 {[%clk 0:02:48]}  Nf6 {[%clk 0:02:58]} 2. c4 {[%clk 0:02:48]}  g6 {[%clk 0:02:59]} 3. Nc3 {[%clk 0:02:43]}  Bg7 {[%clk 0:02:59]} 4. e4 {[%clk 0:02:42]}  d6 {[%clk 0:03:00]} 5. f3 {[%clk 0:02:42]}  O-O {[%clk 0:03:01]} 6. Be3 {[%clk 0:02:43]}  Nc6 {[%clk 0:03:01]} 7. Nge2 {[%clk 0:02:44]}  a6 {[%clk 0:03:01]} 8. Qd2 {[%clk 0:02:44]}  Rb8 {[%clk 0:03:01]} 9. Rc1 {[%clk 0:02:43]}  Bd7 {[%clk 0:03:00]} 10. Nd1 {[%clk 0:02:43]}  Re8 {[%clk 0:02:57]} 11. g3 {[%clk 0:02:43]}  b5 {[%clk 0:02:56]} 12. c5 {[%clk 0:02:42]}  dxc5 {[%clk 0:02:57]} 13. Rxc5 {[%clk 0:02:43]}  e5 {[%clk 0:02:58]} 14. d5 {[%clk 0:02:43]}  Ne7 {[%clk 0:02:58]} 15. Bg2 {[%clk 0:02:37]}  c6 {[%clk 0:02:57]} 16. dxc6 {[%clk 0:02:37]}  Nxc6 {[%clk 0:02:56]} 17. O-O {[%clk 0:02:35]}  Bf8 {[%clk 0:02:56]} 18. Rc1 {[%clk 0:02:35]}  Rc8 {[%clk 0:02:49]} 19. Ndc3 {[%clk 0:02:31]}  Be6 {[%clk 0:02:46]} 20. Qxd8 {[%clk 0:02:27]}  Rexd8 {[%clk 0:02:47]} 21. Rfd1 {[%clk 0:02:27]}  Nd4 {[%clk 0:01:59]} 22. Nxd4 {[%clk 0:01:40]}  exd4 {[%clk 0:01:53]} 23. Bxd4 {[%clk 0:01:41]}  Rxd4 {[%clk 0:01:49]} 24. Rxd4 {[%clk 0:01:42]}  Bc5 {[%clk 0:01:50]} 25. Rd1 {[%clk 0:01:41]}  Rd8 {[%clk 0:01:39]} 26. Ne2 {[%clk 0:01:40]}  Bxa2 {[%clk 0:01:36]} 27. Kf1 {[%clk 0:01:32]}  Bxd4 {[%clk 0:01:34]} 28. Nxd4 {[%clk 0:01:32]}  Bc4+ {[%clk 0:01:24]} 29. Kf2 {[%clk 0:01:32]}  a5 {[%clk 0:01:20]} 30. e5 {[%clk 0:01:25]}  Ne8 {[%clk 0:01:13]} 31. f4 {[%clk 0:01:20]}  a4 {[%clk 0:01:07]} 32. Ke3 {[%clk 0:01:20]}  Nc7 {[%clk 0:01:06]} 33. Ra1 {[%clk 0:01:09]}  Ne6 {[%clk 0:01:05]} 34. Rd1 {[%clk 0:00:56]}  b4 {[%clk 0:00:48]} 35. Bf3 {[%clk 0:00:55]}  Rxd4 {[%clk 0:00:45]} 36. Rxd4 {[%clk 0:00:55]}  Nxd4 {[%clk 0:00:45]} 37. Kxd4 {[%clk 0:00:55]}  a3 {[%clk 0:00:31]} 38. bxa3 {[%clk 0:00:56]}  bxa3 {[%clk 0:00:31]} 39. Kc3 {[%clk 0:00:57]}  Be6 {[%clk 0:00:23]} 40. Bd1 {[%clk 0:00:56]}  a2 {[%clk 0:00:20]} 41. Kb2 {[%clk 0:00:55]}  Kf8 {[%clk 0:00:18]} 42. g4 {[%clk 0:00:54]}  Ke7 {[%clk 0:00:12]} 43. h3 {[%clk 0:00:54]}  Kd7 {[%clk 0:00:11]} 44. Ba4+ {[%clk 0:00:50]}  Kc7 {[%clk 0:00:11]} 45. Bc2 {[%clk 0:00:51]}  Kc6 {[%clk 0:00:06]} 46. f5 {[%clk 0:00:50]}  Bd5 {[%clk 0:00:04]} 47. e6 {[%clk 0:00:48]}  fxe6 {[%clk 0:00:04]} 48. fxg6 {[%clk 0:00:48]}  hxg6 {[%clk 0:00:03]} 49. Bxg6 {[%clk 0:00:49]}  e5 {[%clk 0:00:02]} 50. h4 {[%clk 0:00:49]}  Kd6 {[%clk 0:00:03]} 51. h5 {[%clk 0:00:49]}  Ke7 {[%clk 0:00:02]} 52. h6 {[%clk 0:00:49]}  Kf6 {[%clk 0:00:02]} 53. Bf5 {[%clk 0:00:44]}  e4 {[%clk 0:00:02]} 54. g5+ {[%clk 0:00:43]}  Kf7 {[%clk 0:00:01]} 55. g6+ {[%clk 0:00:42]}  Kf6 {[%clk 0:00:01]} 56. g7 {[%clk 0:00:31]} 1-0


[Site "https://www.chess.com"]

[Event "Titled Tuesday Blitz April 18 Late 2023"]
[White "TheKnightOfBosnia"]
[Black "Manukyan, Sargis A."]
[BlackFideId "13303970"]
[WhiteElo "2508"]
[BlackElo "2187"]
[Result "0-1"]
[Round "04"]
[TimeControl "180+2"]
[Date "2023.04.18"]
[WhiteClock "0:00:12"]
[BlackClock "0:00:27"]

1. e4 {[%clk 0:03:00]}  c5 {[%clk 0:03:00]} 2. Nf3 {[%clk 0:03:01]}  d6 {[%clk 0:03:00]} 3. Bb5+ {[%clk 0:03:01]}  Bd7 {[%clk 0:03:00]} 4. Bxd7+ {[%clk 0:03:01]}  Qxd7 {[%clk 0:03:01]} 5. c4 {[%clk 0:02:59]}  Nc6 {[%clk 0:03:01]} 6. Nc3 {[%clk 0:03:00]}  Nf6 {[%clk 0:03:01]} 7. d4 {[%clk 0:03:00]}  Nxd4 {[%clk 0:03:02]} 8. Nxd4 {[%clk 0:03:01]}  cxd4 {[%clk 0:03:03]} 9. Qxd4 {[%clk 0:03:01]}  g6 {[%clk 0:03:04]} 10. f3 {[%clk 0:03:00]}  Bg7 {[%clk 0:03:04]} 11. Be3 {[%clk 0:03:00]}  O-O {[%clk 0:03:05]} 12. Qd2 {[%clk 0:02:59]}  Rfc8 {[%clk 0:03:05]} 13. b3 {[%clk 0:02:59]}  a6 {[%clk 0:03:05]} 14. a4 {[%clk 0:02:59]}  b5 {[%clk 0:03:03]} 15. axb5 {[%clk 0:02:59]}  axb5 {[%clk 0:03:04]} 16. Rxa8 {[%clk 0:02:40]}  Rxa8 {[%clk 0:03:05]} 17. O-O {[%clk 0:02:35]}  bxc4 {[%clk 0:03:04]} 18. bxc4 {[%clk 0:02:36]}  Qc6 {[%clk 0:03:04]} 19. Nd5 {[%clk 0:02:34]}  Nxd5 {[%clk 0:02:53]} 20. cxd5 {[%clk 0:02:31]}  Qb5 {[%clk 0:02:40]} 21. Bd4 {[%clk 0:02:00]}  Bxd4+ {[%clk 0:02:32]} 22. Qxd4 {[%clk 0:02:01]}  Ra4 {[%clk 0:02:32]} 23. Qd2 {[%clk 0:01:56]}  Qc5+ {[%clk 0:02:31]} 24. Qf2 {[%clk 0:01:56]}  Qc4 {[%clk 0:02:28]} 25. h4 {[%clk 0:01:39]}  Ra2 {[%clk 0:02:28]} 26. Qg3 {[%clk 0:01:38]}  h5 {[%clk 0:02:27]} 27. Rf2 {[%clk 0:01:17]}  Qd4 {[%clk 0:02:21]} 28. f4 {[%clk 0:01:02]}  Re2 {[%clk 0:01:55]} 29. f5 {[%clk 0:00:54]}  Re1+ {[%clk 0:01:42]} 30. Kh2 {[%clk 0:00:52]}  Rxe4 {[%clk 0:01:42]} 31. fxg6 {[%clk 0:00:48]}  Rxh4+ {[%clk 0:01:37]} 32. Kg1 {[%clk 0:00:47]}  f6 {[%clk 0:01:16]} 33. Qf3 {[%clk 0:00:33]}  Re4 {[%clk 0:00:36]} 34. Qxh5 {[%clk 0:00:20]}  Re1+ {[%clk 0:00:35]} 35. Kh2 {[%clk 0:00:20]}  Qe5+ {[%clk 0:00:32]} 36. Qxe5 {[%clk 0:00:20]}  Rxe5 {[%clk 0:00:33]} 37. Rd2 {[%clk 0:00:20]}  Kg7 {[%clk 0:00:33]} 38. Kg3 {[%clk 0:00:18]}  Kxg6 {[%clk 0:00:34]} 39. Kf4 {[%clk 0:00:19]}  Kf7 {[%clk 0:00:33]} 40. g4 {[%clk 0:00:18]}  Ke8 {[%clk 0:00:32]} 41. Rd3 {[%clk 0:00:18]}  Kd7 {[%clk 0:00:32]} 42. Rd2 {[%clk 0:00:18]}  Kc7 {[%clk 0:00:33]} 43. Rc2+ {[%clk 0:00:19]}  Kb6 {[%clk 0:00:33]} 44. Rc6+ {[%clk 0:00:11]}  Kb5 {[%clk 0:00:33]} 45. Rc7 {[%clk 0:00:12]}  Kb6 {[%clk 0:00:31]} 46. Rd7 {[%clk 0:00:12]}  Kc5 {[%clk 0:00:27]} 0-1


[Site "https://www.chess.com"]

[Event "Titled Tuesday Blitz April 18 Late 2023"]
[White "Matinian, Nikita"]
[Black "Hajiyev, Kanan"]
[WhiteFideId "24129100"]
[BlackFideId "13404148"]
[WhiteElo "2422"]
[BlackElo "2103"]
[Result "1-0"]
[Round "04"]
[TimeControl "180+2"]
[Date "2023.04.18"]
[WhiteClock "0:00:05"]
[BlackClock "0:00:15"]

1. e4 {[%clk 0:03:00]}  c6 {[%clk 0:03:00]} 2. d4 {[%clk 0:03:00]}  d5 {[%clk 0:03:00]} 3. e5 {[%clk 0:03:01]}  a6 {[%clk 0:03:00]} 4. Nf3 {[%clk 0:03:02]}  Bg4 {[%clk 0:03:00]} 5. Nbd2 {[%clk 0:03:00]}  e6 {[%clk 0:03:00]} 6. Bd3 {[%clk 0:02:59]}  c5 {[%clk 0:03:00]} 7. h3 {[%clk 0:02:57]}  Bh5 {[%clk 0:02:59]} 8. O-O {[%clk 0:02:41]}  cxd4 {[%clk 0:02:53]} 9. g4 {[%clk 0:02:30]}  Bg6 {[%clk 0:02:53]} 10. Nxd4 {[%clk 0:02:26]}  Nc6 {[%clk 0:02:53]} 11. Nxc6 {[%clk 0:02:25]}  bxc6 {[%clk 0:02:54]} 12. f4 {[%clk 0:02:22]}  Bc5+ {[%clk 0:02:53]} 13. Kg2 {[%clk 0:02:22]}  Bxd3 {[%clk 0:02:39]} 14. cxd3 {[%clk 0:02:23]}  h5 {[%clk 0:02:39]} 15. Nf3 {[%clk 0:02:14]}  Nh6 {[%clk 0:02:29]} 16. d4 {[%clk 0:02:13]}  Bb6 {[%clk 0:02:07]} 17. Ng5 {[%clk 0:01:51]}  hxg4 {[%clk 0:01:47]} 18. hxg4 {[%clk 0:01:52]}  c5 {[%clk 0:01:44]} 19. f5 {[%clk 0:01:18]}  cxd4 {[%clk 0:01:17]} 20. fxe6 {[%clk 0:00:51]}  fxe6 {[%clk 0:00:55]} 21. Qc2 {[%clk 0:00:31]}  Kd7 {[%clk 0:00:43]} 22. Qa4+ {[%clk 0:00:19]}  Kc8 {[%clk 0:00:36]} 23. Qc6+ {[%clk 0:00:12]}  Kb8 {[%clk 0:00:33]} 24. Nxe6 {[%clk 0:00:11]}  Qc8 {[%clk 0:00:12]} 25. Qxb6+ {[%clk 0:00:10]}  Qb7 {[%clk 0:00:12]} 26. Qxb7+ {[%clk 0:00:10]}  Kxb7 {[%clk 0:00:13]} 27. Bxh6 {[%clk 0:00:11]}  Kb6 {[%clk 0:00:14]} 28. Bxg7 {[%clk 0:00:09]}  Rhg8 {[%clk 0:00:15]} 29. Rf7 {[%clk 0:00:07]}  Rae8 {[%clk 0:00:15]} 30. Nxd4 {[%clk 0:00:06]}  Kc5 {[%clk 0:00:16]} 31. Rd1 {[%clk 0:00:05]}  Kc4 {[%clk 0:00:16]} 32. Nb3 {[%clk 0:00:06]}  Kb4 {[%clk 0:00:16]} 33. Rb7+ {[%clk 0:00:04]}  Ka4 {[%clk 0:00:15]} 34. Rd4# {[%clk 0:00:05]} 1-0


[Site "https://www.chess.com"]